Workbook

Sheet start here
A1: Today's Date: | B1: =TODAY() -> 2019-08-19 | D1: Pricing a Corporate Bond from a Zero Coupon Yield Curve
N2: Treasury | R2: Corporate
A3: Period | B3: Years till Mat. | C3: Nearest Date | D3: Cpn Rate (%) | E3: Cpn Pmt | F3: Price | G3: Disc Fact | H3: Sum DF | I3: Zero | J3: Zero BEY | N3: CF | O3: PV CF | R3: Disc Rate | S3: PV CF
A4: 1 | B4: 0.5 | C4: =DATE(YEAR(B1), MONTH(B1)+6, DAY(B1)) -> 2020-02-19 | D4: 0 | E4: =D4/2 -> 0 | G4: =1/(1+I4)^A4 -> 0.9907906014 | H4: =G4 -> 0.9907906014 | I4: =J4/2 -> 0.009295 | J4: =VLOOKUP(A40,'Treasury Bills'!$A$2:$E$34,5,FALSE)/100 -> 0.01859 | L4: Coupon Rate | N4: =$L$5/2*100 -> 1.5 | O4: =N4/(1+I4)^A4 -> 1.486185902 | R4: =I4+$L$11/2 -> 0.019295 | S4: =N4/(1+R4)^A4 -> 1.471605374
A5: 2 | B5: 1 | C5: =DATE(YEAR(C4), MONTH(C4)+6, DAY(C4)) -> 2020-08-19 | D5: 0 | E5: =D5/2 -> 0 | G5: 0.9816660157 | H5: =G5+H4 -> 1.972456617 | I5: =J5/2 -> 0.009295 | J5: =VLOOKUP(A41,'Treasury Bills'!$A$2:$E$34,5,FALSE)/100 -> 0.01859 | L5: 0.03 | N5: =$L$5/2*100 -> 1.5 | O5: 1.472499024 | R5: 0.019295 | S5: 1.443748252
A6: 3 | B6: 1.5 | C6: =DATE(YEAR(C5), MONTH(C5)+6, DAY(C5)) -> 2021-02-19 | D6: =VLOOKUP(A42,'Treasury Notes & Bonds'!A2:D306,2,FALSE) -> 2.25 | E6: 1.125 | F6: =VLOOKUP(A42,'Treasury Notes & Bonds'!A2:D306,4,FALSE) -> 100.292 | G6: 0.9698193949 | H6: =G6+H5 -> 2.942276012 | I6: =((100+E6)/(F6-E6*H5))^(1/A6)-1 -> 0.0102674912 | J6: =I6*2 -> 0.0205349824 | N6: 1.5 | O6: 1.454729092 | R6: 0.0202674912 | S6: 1.412372042
A7: 4 | B7: 2 | C7: 2021-08-19 | D7: =VLOOKUP(A43,'Treasury Notes & Bonds'!A2:D306,2,FALSE) -> 2.125 | E7: 1.0625 | F7: =VLOOKUP(A43,'Treasury Notes & Bonds'!A2:D306,4,FALSE) -> 101.042 | G7: 0.9688641359 | H7: =G7+H6 -> 3.911140148 | I7: 0.007939070491 | J7: 0.01587814098 | N7: 1.5 | O7: 1.453296204 | R7: 0.01793907049 | S7: 1.397024827
A8: 5 | B8: 2.5 | C8: 2022-02-19 | D8: =VLOOKUP(A44,'Treasury Notes & Bonds'!A2:D306,2,FALSE) -> 2 | E8: 1 | F8: =VLOOKUP(A44,'Treasury Notes & Bonds'!A2:D306,4,FALSE) -> 101.076 | G8: 0.9620283154 | H8: =G8+H7 -> 4.873168463 | I8: 0.00777232792 | J8: 0.01554465584 | N8: 1.5 | O8: 1.443042473 | R8: 0.01777232792 | S8: 1.373529734
A9: 6 | B9: 3 | C9: 2022-08-19 | D9: =VLOOKUP(A45,'Treasury Notes & Bonds'!A2:D306,2,FALSE) -> 1.5 | E9: 0.75 | F9: =VLOOKUP(A45,'Treasury Notes & Bonds'!A2:D306,4,FALSE) -> 100.022 | G9: 0.9564975052 | H9: =G9+H8 -> 5.829665969 | I9: 0.007440392907 | J9: 0.01488078581 | N9: 1.5 | O9: 1.434746258 | R9: 0.01744039291 | S9: 1.352189026
A10: 7 | B10: 3.5 | C10: 2023-02-19 | D10: =VLOOKUP(A46,'Treasury Notes & Bonds'!A2:D306,2,FALSE) -> 2 | E10: 1 | F10: =VLOOKUP(A46,'Treasury Notes & Bonds'!A2:D306,4,FALSE) -> 101.246 | G10: 0.9447161785 | H10: 6.774382147 | I10: 0.008157483391 | J10: 0.01631496678 | L10: Credit Spread | N10: 1.5 | O10: 1.417074268 | R10: 0.01815748339 | S10: 1.322472213
A11: 8 | B11: 4 | C11: 2023-08-19 | D11: =VLOOKUP(A47,'Treasury Notes & Bonds'!A2:D306,2,FALSE) -> 2.5 | E11: 1.25 | F11: =VLOOKUP(A47,'Treasury Notes & Bonds'!A2:D306,4,FALSE) -> 103.304 | G11: 0.9366520723 | H11: 7.711034219 | I11: 0.008213974421 | J11: 0.01642794884 | L11: 0.02 | N11: 1.5 | O11: 1.404978108 | R11: 0.01821397442 | S11: 1.298311289
A12: 9 | B12: 4.5 | C12: 2024-02-19 | D12: =VLOOKUP(A48,'Treasury Notes & Bonds'!A2:D306,2,FALSE) -> 2.75 | E12: 1.375 | F12: =VLOOKUP(A48,'Treasury Notes & Bonds'!A2:D306,4,FALSE) -> 105.172 | G12: 0.9328663669 | H12: 8.643900586 | I12: 0.007751367259 | J12: 0.01550273452 | N12: 1.5 | O12: 1.39929955 | R12: 0.01775136726 | S12: 1.280312568
A13: 10 | B13: 5 | C13: 2024-08-19 | D13: =VLOOKUP(A49,'Treasury Notes & Bonds'!A2:D306,2,FALSE) -> 2.375 | E13: 1.1875 | F13: =VLOOKUP(A49,'Treasury Notes & Bonds'!A2:D306,4,FALSE) -> 104.104 | G13: 0.9273810308 | H13: 9.571281617 | I13: 0.007567566528 | J13: 0.01513513306 | N13: 1.5 | O13: 1.391071546 | R13: 0.01756756653 | S13: 1.260255782
A14: 11 | B14: 5.5 | C14: 2025-02-19 | D14: =VLOOKUP(A50,'Treasury Notes & Bonds'!A2:D306,2,FALSE) -> 2 | E14: 1 | F14: =VLOOKUP(A50,'Treasury Notes & Bonds'!A2:D306,4,FALSE) -> 102.222 | G14: 0.9173338454 | H14: 10.48861546 | I14: 0.007874827393 | J14: 0.01574965479 | N14: 1.5 | O14: 1.376000768 | R14: 0.01787482739 | S14: 1.234392128
A15: 12 | B15: 6 | C15: 2025-08-19 | D15: =VLOOKUP(A51,'Treasury Notes & Bonds'!A2:D306,2,FALSE) -> 2 | E15: 1 | F15: =VLOOKUP(A51,'Treasury Notes & Bonds'!A2:D306,4,FALSE) -> 102.252 | G15: 0.9085483618 | H15: 11.39716382 | I15: 0.008024286729 | J15: 0.01604857346 | N15: 1.5 | O15: 1.362822543 | R15: 0.01802428673 | S15: 1.21058027
A16: 13 | B16: 6.5 | C16: 2026-02-19 | D16: =VLOOKUP(A52,'Treasury Notes & Bonds'!A2:D306,2,FALSE) -> 1.625 | E16: 0.8125 | F16: =VLOOKUP(A52,'Treasury Notes & Bonds'!A2:D306,4,FALSE) -> 100.192 | G16: 0.9019893802 | H16: 12.2991532 | I16: 0.007966374235 | J16: 0.01593274847 | N16: 1.5 | O16: 1.35298407 | R16: 0.01796637424 | S16: 1.190026511
A17: 14 | B17: 7 | C17: 2026-08-19 | D17: =VLOOKUP(A53,'Treasury Notes & Bonds'!A2:D306,2,FALSE) -> 1.5 | E17: 0.75 | F17: =VLOOKUP(A53,'Treasury Notes & Bonds'!A2:D306,4,FALSE) -> 99.246 | G17: 0.8935149886 | H17: 13.19266819 | I17: 0.008074723962 | J17: 0.01614944792 | N17: 1.5 | O17: 1.340272483 | R17: 0.01807472396 | S17: 1.167282799
A18: 15 | B18: 7.5 | C18: 2027-02-19 | D18: =VLOOKUP(A54,'Treasury Notes & Bonds'!A2:D306,2,FALSE) -> 2.25 | E18: 1.125 | F18: =VLOOKUP(A54,'Treasury Notes & Bonds'!A2:D306,4,FALSE) -> 104.316 | G18: 0.884788611 | H18: 14.0774568 | I18: 0.008193821782 | J18: 0.01638764356 | N18: 1.5 | O18: 1.327182916 | R18: 0.01819382178 | S18: 1.144549017
A19: 16 | B19: 8 | C19: 2027-08-19 | D19: =VLOOKUP(A55,'Treasury Notes & Bonds'!A2:D306,2,FALSE) -> 2.25 | E19: 1.125 | F19: =VLOOKUP(A55,'Treasury Notes & Bonds'!A2:D306,4,FALSE) -> 105.064 | G19: 0.8823422605 | H19: 14.95979906 | I19: 0.007854136158 | J19: 0.01570827232 | N19: 1.5 | O19: 1.323513391 | R19: 0.01785413616 | S19: 1.130114707
A20: 17 | B20: 8.5 | C20: 2028-02-19 | D20: =VLOOKUP(A56,'Treasury Notes & Bonds'!A2:D306,2,FALSE) -> 2.75 | E20: 1.375 | F20: =VLOOKUP(A56,'Treasury Notes & Bonds'!A2:D306,4,FALSE) -> 109.122 | G20: 0.8735119732 | H20: 15.83331104 | I20: 0.00798663272 | J20: 0.01597326544 | N20: 1.5 | O20: 1.31026796 | R20: 0.01798663272 | S20: 1.10783729
A21: 18 | B21: 9 | C21: 2028-08-19 | D21: =VLOOKUP(A57,'Treasury Notes & Bonds'!A2:D306,2,FALSE) -> 2.875 | E21: 1.4375 | F21: =VLOOKUP(A57,'Treasury Notes & Bonds'!A2:D306,4,FALSE) -> 110.252 | G21: 0.8625174653 | H21: 16.6958285 | I21: 0.008250509436 | J21: 0.01650101887 | N21: 1.5 | O21: 1.293776198 | R21: 0.01825050944 | S21: 1.083197903
A22: 19 | B22: 9.5 | C22: 2029-02-19 | D22: =VLOOKUP(A58,'Treasury Notes & Bonds'!A2:D306,2,FALSE) -> 2.625 | E22: 1.3125 | F22: =VLOOKUP(A58,'Treasury Notes & Bonds'!A2:D306,4,FALSE) -> 109.03 | G22: 0.8598813087 | H22: 17.55570981 | I22: 0.007976958924 | J22: 0.01595391785 | N22: 1.5 | O22: 1.289821963 | R22: 0.01797695892 | S22: 1.069227803
A23: 20 | B23: 10 | C23: 2029-08-19 | D23: =VLOOKUP(A59,'Treasury Notes & Bonds'!A2:D306,2,FALSE) -> 1.625 | E23: 0.8125 | F23: =VLOOKUP(A59,'Treasury Notes & Bonds'!A2:D306,4,FALSE) -> 100.084 | G23: 0.8512831819 | H23: 18.40699299 | I23: 0.008083014691 | J23: 0.01616602938 | N23: =100+L5/2*100 -> 101.5 | O23: 86.40524297 | P23: Yield | R23: 0.01808301469 | S23: 70.92546703 | T23: Yield
O24: =SUM(O4:O23) -> 112.7388077 | P24: =YIELD(B1,C23,L5,O24,100,2) -> 0.01615336793 | S24: =SUM(S4:S23) -> 94.87449656 | T24: =YIELD(B1,C23,L5,S24,100,2) -> 0.03615342542
A40: =INDEX('Treasury Bills'!A2:A34,MATCH(MIN(ABS('Treasury Bills'!A2:A34-$C$4)),ABS('Treasury Bills'!A2:A34-$C$4),0)) -> 2020-02-06
A41: =INDEX('Treasury Bills'!A2:A34,MATCH(MIN(ABS('Treasury Bills'!A2:A34-$C$5)),ABS('Treasury Bills'!A2:A34-$C$5),0)) -> 2020-02-06
A42: =INDEX('Treasury Notes & Bonds'!A2:A306,MATCH(MIN(ABS('Treasury Notes & Bonds'!A2:A306-C6)),ABS('Treasury Notes & Bonds'!A2:A306-C6),0)) -> 2021-02-15
A43: =INDEX('Treasury Notes & Bonds'!A2:A306,MATCH(MIN(ABS('Treasury Notes & Bonds'!A2:A306-C7)),ABS('Treasury Notes & Bonds'!A2:A306-C7),0)) -> 2021-08-15
A44: =INDEX('Treasury Notes & Bonds'!A2:A306,MATCH(MIN(ABS('Treasury Notes & Bonds'!A2:A306-C8)),ABS('Treasury Notes & Bonds'!A2:A306-C8),0)) -> 2022-02-15
A45: =INDEX('Treasury Notes & Bonds'!A2:A306,MATCH(MIN(ABS('Treasury Notes & Bonds'!A2:A306-C9)),ABS('Treasury Notes & Bonds'!A2:A306-C9),0)) -> 2022-08-15
A46: =INDEX('Treasury Notes & Bonds'!A2:A306,MATCH(MIN(ABS('Treasury Notes & Bonds'!A2:A306-C10)),ABS('Treasury Notes & Bonds'!A2:A306-C10),0)) -> 2023-02-15
A47: =INDEX('Treasury Notes & Bonds'!A2:A306,MATCH(MIN(ABS('Treasury Notes & Bonds'!A2:A306-C11)),ABS('Treasury Notes & Bonds'!A2:A306-C11),0)) -> 2023-08-15
A48: =INDEX('Treasury Notes & Bonds'!A2:A306,MATCH(MIN(ABS('Treasury Notes & Bonds'!A2:A306-C12)),ABS('Treasury Notes & Bonds'!A2:A306-C12),0)) -> 2024-02-15
A49: =INDEX('Treasury Notes & Bonds'!A2:A306,MATCH(MIN(ABS('Treasury Notes & Bonds'!A2:A306-C13)),ABS('Treasury Notes & Bonds'!A2:A306-C13),0)) -> 2024-08-15
A50: =INDEX('Treasury Notes & Bonds'!A2:A306,MATCH(MIN(ABS('Treasury Notes & Bonds'!A2:A306-C14)),ABS('Treasury Notes & Bonds'!A2:A306-C14),0)) -> 2025-02-15
A51: =INDEX('Treasury Notes & Bonds'!A2:A306,MATCH(MIN(ABS('Treasury Notes & Bonds'!A2:A306-C15)),ABS('Treasury Notes & Bonds'!A2:A306-C15),0)) -> 2025-08-15
A52: =INDEX('Treasury Notes & Bonds'!A2:A306,MATCH(MIN(ABS('Treasury Notes & Bonds'!A2:A306-C16)),ABS('Treasury Notes & Bonds'!A2:A306-C16),0)) -> 2026-02-15
A53: =INDEX('Treasury Notes & Bonds'!A2:A306,MATCH(MIN(ABS('Treasury Notes & Bonds'!A2:A306-C17)),ABS('Treasury Notes & Bonds'!A2:A306-C17),0)) -> 2026-08-15
A54: =INDEX('Treasury Notes & Bonds'!A2:A306,MATCH(MIN(ABS('Treasury Notes & Bonds'!A2:A306-C18)),ABS('Treasury Notes & Bonds'!A2:A306-C18),0)) -> 2027-02-15
A55: =INDEX('Treasury Notes & Bonds'!A2:A306,MATCH(MIN(ABS('Treasury Notes & Bonds'!A2:A306-C19)),ABS('Treasury Notes & Bonds'!A2:A306-C19),0)) -> 2027-08-15
A56: =INDEX('Treasury Notes & Bonds'!A2:A306,MATCH(MIN(ABS('Treasury Notes & Bonds'!A2:A306-C20)),ABS('Treasury Notes & Bonds'!A2:A306-C20),0)) -> 2028-02-15
A57: =INDEX('Treasury Notes & Bonds'!A2:A306,MATCH(MIN(ABS('Treasury Notes & Bonds'!A2:A306-C21)),ABS('Treasury Notes & Bonds'!A2:A306-C21),0)) -> 2028-08-15
A58: =INDEX('Treasury Notes & Bonds'!A2:A306,MATCH(MIN(ABS('Treasury Notes & Bonds'!A2:A306-C22)),ABS('Treasury Notes & Bonds'!A2:A306-C22),0)) -> 2029-02-15
A59: =INDEX('Treasury Notes & Bonds'!A2:A306,MATCH(MIN(ABS('Treasury Notes & Bonds'!A2:A306-C23)),ABS('Treasury Notes & Bonds'!A2:A306-C23),0)) -> 2029-08-15

Sheet Treasury Bills
A1: maturityDate | B1: bid | C1: ask | D1: change | E1: askYield
A2: 2019-08-22 | B2: 1.853 | C2: 1.843 | D2: 0.018 | E2: 1.8683
A3: 2019-08-27 | B3: 1.893 | C3: 1.883 | D3: 0.003 | E3: 1.915
A4: 2019-08-29 | B4: 1.76 | C4: 1.75 | D4: -0.03 | E4: 1.775
A5: 2019-09-03 | B5: 1.96 | C5: 1.95 | D5: 0.01 | E5: 1.984
A6: 2019-09-05 | B6: 1.908 | C6: 1.898 | D6: 0.033 | E6: 1.926
A7: 2019-09-10 | B7: 1.993 | C7: 1.983 | D7: 0.033 | E7: 2.018
A8: 2019-09-12 | B8: 1.933 | C8: 1.923 | D8: 0.045 | E8: 1.952
A9: 2019-09-17 | B9: 2.03 | C9: 2.02 | D9: 0.025 | E9: 2.057
A10: 2019-09-19 | B10: 1.91 | C10: 1.9 | D10: 0.005 | E10: 1.9347
A11: 2019-09-24 | B11: 1.94 | C11: 1.93 | D11: 0.023 | E11: 1.966
A12: 2019-09-26 | B12: 1.905 | C12: 1.895 | D12: 0.013 | E12: 1.93
A13: 2019-10-01 | B13: 1.933 | C13: 1.923 | D13: 0.043 | E13: 1.9589
A14: 2019-10-03 | B14: 1.885 | C14: 1.875 | D14: 0.015 | E14: 1.911
A15: 2019-10-08 | B15: 1.89 | C15: 1.88 | D15: 0.002 | E15: 1.916
A16: 2019-10-10 | B16: 1.878 | C16: 1.868 | D16: 0.013 | E16: 1.899
A17: 2019-10-15 | B17: 1.925 | C17: 1.915 | D17: 0.005 | E17: 1.953
A18: 2019-10-17 | B18: 1.853 | C18: 1.843 | D18: 0.028 | E18: 1.879
A19: 2019-10-24 | B19: 1.85 | C19: 1.84 | D19: 0.03 | E19: 1.877
A20: 2019-10-31 | B20: 1.848 | C20: 1.838 | D20: 0.033 | E20: 1.875
A21: 2019-11-07 | B21: 1.85 | C21: 1.84 | D21: 0.023 | E21: 1.873
A22: 2019-11-14 | B22: 1.868 | C22: 1.858 | D22: 0.035 | E22: 1.897
A23: 2019-11-21 | B23: 1.858 | C23: 1.848 | D23: 0.06 | E23: 1.887
A24: 2019-11-29 | B24: 1.845 | C24: 1.835 | D24: 0.037 | E24: 1.875
A25: 2019-12-05 | B25: 1.82 | C25: 1.81 | D25: 0.033 | E25: 1.845
A26: 2019-12-12 | B26: 1.808 | C26: 1.798 | D26: 0.023 | E26: 1.838
A27: 2019-12-19 | B27: 1.82 | C27: 1.81 | D27: 0.04 | E27: 1.8514
A28: 2019-12-26 | B28: 1.823 | C28: 1.813 | D28: 0.015 | E28: 1.855
A29: 2020-01-02 | B29: 1.823 | C29: 1.813 | D29: 0.025 | E29: 1.85
A30: 2020-01-09 | B30: 1.81 | C30: 1.8 | D30: 0.02 | E30: 1.843
A31: 2020-01-16 | B31: 1.798 | C31: 1.788 | D31: 0.018 | E31: 1.831
A32: 2020-01-23 | B32: 1.815 | C32: 1.805 | D32: 0.027 | E32: 1.85
A33: 2020-01-30 | B33: 1.828 | C33: 1.818 | D33: 0.043 | E33: 1.858
A34: 2020-02-06 | B34: 1.823 | C34: 1.813 | D34: 0.038 | E34: 1.859
A35: 2020-02-13 | B35: 1.838 | C35: 1.828 | D35: 0.035 | E35: 1.8748
A36: 2020-02-27 | B36: 1.748 | C36: 1.738 | D36: 0.03 | E36: 1.778
A37: 2020-03-26 | B37: 1.718 | C37: 1.708 | D37: 0.035 | E37: 1.7542
A38: 2020-04-23 | B38: 1.723 | C38: 1.713 | D38: 0.015 | E38: 1.762
A39: 2020-05-21 | B39: 1.718 | C39: 1.708 | D39: 0.05 | E39: 1.759
A40: 2020-06-18 | B40: 1.71 | C40: 1.7 | D40: 0.047 | E40: 1.7534
A41: 2020-07-16 | B41: 1.713 | C41: 1.703 | D41: 0.047 | E41: 1.758
A42: 2020-08-13 | B42: 1.7 | C42: 1.69 | D42: 0.047 | E42: 1.748

Sheet Treasury Notes & Bonds
A1: maturityDate | B1: coupon | C1: bid | D1: ask | E1: change | F1: askYield
A2: 2019-08-31 | B2: 1 | C2: 99.304 | D2: 99.31 | E2: unch. | F2: 2.046
A3: 2019-08-31 | B3: 1.625 | C3: 99.306 | D3: 99.312 | E3: -0.004 | F3: 2.405
A4: 2019-09-15 | B4: 0.875 | C4: 99.286 | D4: 99.292 | E4: -0.004 | F4: 2.095
A5: 2019-09-30 | B5: 1 | C5: 99.276 | D5: 99.282 | E5: unch. | F5: 2.049
A6: 2019-09-30 | B6: 1.75 | C6: 99.302 | D6: 99.306 | E6: -0.004 | F6: 2.094
A7: 2019-10-15 | B7: 1 | C7: 99.266 | D7: 99.272 | E7: -0.004 | F7: 1.973
A8: 2019-10-31 | B8: 1.5 | C8: 99.282 | D8: 99.286 | E8: -0.008 | F8: 2.018
A9: 2019-11-15 | B9: 3.375 | C9: 100.096 | D9: 100.102 | E9: -0.01 | F9: 2.001
A10: 2019-11-30 | B10: 1 | C10: 99.226 | D10: 99.232 | E10: -0.008 | F10: 1.987
A11: 2019-11-30 | B11: 1.75 | C11: 99.294 | D11: 99.3 | E11: -0.008 | F11: 1.972
A12: 2019-12-15 | B12: 1.375 | C12: 99.254 | D12: 99.26 | E12: -0.01 | F12: 1.964
A13: 2019-12-31 | B13: 1.125 | C13: 99.222 | D13: 99.226 | E13: -0.012 | F13: 1.93
A14: 2019-12-31 | B14: 1.875 | C14: 99.306 | D14: 99.312 | E14: -0.01 | F14: 1.929
A15: 2020-01-15 | B15: 1.375 | C15: 99.26 | D15: 99.264 | E15: -0.004 | F15: 1.805
A16: 2020-01-31 | B16: 1.25 | C16: 99.22 | D16: 99.224 | E16: -0.01 | F16: 1.922
A17: 2020-01-31 | B17: 2 | C17: 100.01 | D17: 100.014 | E17: -0.006 | F17: 1.893
A18: 2020-02-15 | B18: 3.625 | C18: 100.256 | D18: 100.262 | E18: -0.016 | F18: 1.922
A19: 2020-02-29 | B19: 1.25 | C19: 99.21 | D19: 99.214 | E19: -0.01 | F19: 1.875
A20: 2020-02-29 | B20: 2.25 | C20: 100.054 | D20: 100.06 | E20: -0.016 | F20: 1.892
A21: 2020-03-15 | B21: 1.625 | C21: 99.276 | D21: 99.282 | E21: -0.01 | F21: 1.832
A22: 2020-03-31 | B22: 1.125 | C22: 99.174 | D22: 99.18 | E22: -0.008 | F22: 1.846
A23: 2020-03-31 | B23: 2.25 | C23: 100.072 | D23: 100.076 | E23: -0.014 | F23: 1.849
A24: 2020-04-30 | B24: 1.125 | C24: 99.156 | D24: 99.162 | E24: -0.016 | F24: 1.839
A25: 2020-04-30 | B25: 2.375 | C25: 100.112 | D25: 100.116 | E25: -0.014 | F25: 1.84
A26: 2020-05-15 | B26: 1.5 | C26: 99.24 | D26: 99.244 | E26: -0.006 | F26: 1.821
A27: 2020-05-31 | B27: 1.375 | C27: 99.204 | D27: 99.21 | E27: -0.016 | F27: 1.821
A28: 2020-05-31 | B28: 2.5 | C28: 100.162 | D28: 100.166 | E28: -0.014 | F28: 1.818
A29: 2020-06-15 | B29: 1.5 | C29: 99.236 | D29: 99.242 | E29: -0.008 | F29: 1.798
A30: 2020-06-30 | B30: 1.875 | C30: 100.016 | D30: 100.022 | E30: -0.018 | F30: 1.791
A31: 2020-07-15 | B31: 1.5 | C31: 99.242 | D31: 99.246 | E31: -0.01 | F31: 1.754
A32: 2020-07-31 | B32: 2 | C32: 100.064 | D32: 100.07 | E32: -0.016 | F32: 1.765
A33: 2020-08-15 | B33: 2.625 | C33: 100.27 | D33: 100.274 | E33: -0.014 | F33: 1.742
A34: 2020-08-31 | B34: 2.125 | C34: 100.122 | D34: 100.126 | E34: -0.012 | F34: 1.733
A35: 2020-09-15 | B35: 1.375 | C35: 99.2 | D35: 99.204 | E35: -0.02 | F35: 1.715
A36: 2020-09-30 | B36: 2 | C36: 100.094 | D36: 100.1 | E36: -0.02 | F36: 1.714
A37: 2020-10-15 | B37: 1.625 | C37: 99.286 | D37: 99.292 | E37: -0.026 | F37: 1.7
A38: 2020-10-31 | B38: 1.75 | C38: 100.02 | D38: 100.024 | E38: -0.026 | F38: 1.683
A39: 2020-11-15 | B39: 1.75 | C39: 100.03 | D39: 100.034 | E39: -0.026 | F39: 1.66
A40: 2020-11-30 | B40: 2 | C40: 100.132 | D40: 100.136 | E40: -0.03 | F40: 1.658
A41: 2020-12-15 | B41: 1.875 | C41: 100.084 | D41: 100.09 | E41: -0.032 | F41: 1.658
A42: 2020-12-31 | B42: 1.75 | C42: 100.036 | D42: 100.042 | E42: -0.028 | F42: 1.65
A43: 2021-01-15 | B43: 2 | C43: 100.154 | D43: 100.16 | E43: -0.03 | F43: 1.637
A44: 2021-01-31 | B44: 2.125 | C44: 100.22 | D44: 100.224 | E44: -0.03 | F44: 1.631
A45: 2021-02-15 | B45: 2.25 | C45: 100.286 | D45: 100.292 | E45: -0.714 | F45: 1.625
A46: 2021-02-28 | B46: 2 | C46: 100.182 | D46: 100.186 | E46: -0.032 | F46: 1.611
A47: 2021-03-15 | B47: 2.375 | C47: 101.054 | D47: 101.06 | E47: -0.03 | F47: 1.606
A48: 2021-03-31 | B48: 1.25 | C48: 99.132 | D48: 99.136 | E48: -0.034 | F48: 1.61
A49: 2021-04-15 | B49: 2.375 | C49: 101.072 | D49: 101.076 | E49: -0.042 | F49: 1.61
A50: 2021-04-30 | B50: 1.375 | C50: 99.196 | D50: 99.202 | E50: -0.04 | F50: 1.595
A51: 2021-05-15 | B51: 2.625 | C51: 101.244 | D51: 101.25 | E51: -0.038 | F51: 1.58
A52: 2021-05-31 | B52: 2 | C52: 100.234 | D52: 100.24 | E52: -0.04 | F52: 1.57
A53: 2021-06-15 | B53: 2.625 | C53: 101.274 | D53: 101.28 | E53: -0.038 | F53: 1.575
A54: 2021-06-30 | B54: 1.625 | C54: 100.034 | D54: 100.04 | E54: -0.038 | F54: 1.556
A55: 2021-07-15 | B55: 2.625 | C55: 101.312 | D55: 101.316 | E55: -0.718 | F55: 1.558
A56: 2021-07-31 | B56: 1.75 | C56: 100.132 | D56: 100.136 | E56: -0.034 | F56: 1.525
A57: 2021-08-15 | B57: 2.125 | C57: 101.036 | D57: 101.042 | E57: -0.036 | F57: 1.544
A58: 2021-08-31 | B58: 2 | C58: 100.292 | D58: 100.296 | E58: -0.718 | F58: 1.533
A59: 2021-09-15 | B59: 2.75 | C59: 102.154 | D59: 102.16 | E59: -0.04 | F59: 1.519
A60: 2021-09-30 | B60: 1.125 | C60: 99.044 | D60: 99.05 | E60: -0.04 | F60: 1.532
A61: 2021-10-15 | B61: 2.875 | C61: 102.264 | D61: 102.27 | E61: -0.04 | F61: 1.527
A62: 2021-10-31 | B62: 1.25 | C62: 99.13 | D62: 99.134 | E62: -0.04 | F62: 1.519
A63: 2021-11-15 | B63: 2 | C63: 101.03 | D63: 101.034 | E63: -0.042 | F63: 1.493
A64: 2021-11-30 | B64: 1.75 | C64: 100.164 | D64: 100.17 | E64: -0.036 | F64: 1.512
A65: 2021-12-15 | B65: 2.625 | C65: 102.176 | D65: 102.182 | E65: -0.038 | F65: 1.493
A66: 2021-12-31 | B66: 2 | C66: 101.036 | D66: 101.042 | E66: -0.038 | F66: 1.51
A67: 2022-01-15 | B67: 2.5 | C67: 102.102 | D67: 102.106 | E67: -0.038 | F67: 1.506
A68: 2022-01-31 | B68: 1.875 | C68: 100.272 | D68: 100.276 | E68: -0.044 | F68: 1.512
A69: 2022-02-15 | B69: 2 | C69: 101.072 | D69: 101.076 | E69: -0.04 | F69: 1.489
A70: 2022-02-28 | B70: 1.75 | C70: 100.194 | D70: 100.2 | E70: -0.042 | F70: 1.497
A71: 2022-03-15 | B71: 2.375 | C71: 102.076 | D71: 102.082 | E71: -0.046 | F71: 1.477
A72: 2022-03-31 | B72: 1.75 | C72: 100.2 | D72: 100.204 | E72: -0.05 | F72: 1.499
A73: 2022-04-15 | B73: 2.25 | C73: 101.294 | D73: 101.3 | E73: -0.726 | F73: 1.502
A74: 2022-04-30 | B74: 1.75 | C74: 100.214 | D74: 100.22 | E74: -0.048 | F74: 1.489
A75: 2022-05-15 | B75: 1.75 | C75: 100.22 | D75: 100.224 | E75: -0.044 | F75: 1.487
A76: 2022-05-31 | B76: 1.75 | C76: 100.22 | D76: 100.224 | E76: -0.046 | F76: 1.49
A77: 2022-06-15 | B77: 1.75 | C77: 100.242 | D77: 100.246 | E77: -0.044 | F77: 1.467
A78: 2022-06-30 | B78: 1.75 | C78: 100.244 | D78: 100.25 | E78: -0.048 | F78: 1.47
A79: 2022-07-15 | B79: 1.75 | C79: 100.23 | D79: 100.234 | E79: -0.052 | F79: 1.49
A80: 2022-07-31 | B80: 1.875 | C80: 101.026 | D80: 101.032 | E80: -0.056 | F80: 1.491
A81: 2022-08-15 | B81: 1.5 | C81: 100.016 | D81: 100.022 | E81: -0.046 | F81: 1.476
A82: 2022-08-31 | B82: 1.625 | C82: 100.124 | D82: 100.13 | E82: -0.052 | F82: 1.487
A83: 2022-09-30 | B83: 1.75 | C83: 100.254 | D83: 100.26 | E83: -0.048 | F83: 1.482
A84: 2022-10-31 | B84: 1.875 | C84: 101.064 | D84: 101.07 | E84: -0.048 | F84: 1.483
A85: 2022-11-15 | B85: 1.625 | C85: 100.144 | D85: 100.15 | E85: -0.048 | F85: 1.476
A86: 2022-11-30 | B86: 2 | C86: 101.204 | D86: 101.21 | E86: -0.052 | F86: 1.48
A87: 2022-12-31 | B87: 2.125 | C87: 102.034 | D87: 102.04 | E87: -0.06 | F87: 1.475
A88: 2023-01-31 | B88: 1.75 | C88: 100.284 | D88: 100.29 | E88: -0.732 | F88: 1.479
A89: 2023-02-15 | B89: 2 | C89: 101.242 | D89: 101.246 | E89: -0.052 | F89: 1.476
A90: 2023-02-28 | B90: 1.5 | C90: 100.026 | D90: 100.032 | E90: -0.048 | F90: 1.47
A91: 2023-03-31 | B91: 1.5 | C91: 100.02 | D91: 100.024 | E91: -0.06 | F91: 1.478
A92: 2023-04-30 | B92: 1.625 | C92: 100.156 | D92: 100.162 | E92: -0.064 | F92: 1.483
A93: 2023-05-15 | B93: 1.75 | C93: 100.306 | D93: 100.312 | E93: -0.746 | F93: 1.48
A94: 2023-05-31 | B94: 1.625 | C94: 100.164 | D94: 100.17 | E94: -0.058 | F94: 1.48
A95: 2023-06-30 | B95: 1.375 | C95: 99.184 | D95: 99.19 | E95: -0.068 | F95: 1.484
A96: 2023-07-31 | B96: 1.25 | C96: 99.024 | D96: 99.03 | E96: -0.066 | F96: 1.487
A97: 2023-08-15 | B97: 2.5 | C97: 103.3 | D97: 103.304 | E97: -0.74 | F97: 1.475
A98: 2023-08-31 | B98: 1.375 | C98: 99.186 | D98: 99.192 | E98: -0.064 | F98: 1.477
A99: 2023-09-30 | B99: 1.375 | C99: 99.186 | D99: 99.192 | E99: -0.058 | F99: 1.475
A100: 2023-10-31 | B100: 1.625 | C100: 100.186 | D100: 100.192 | E100: -0.058 | F100: 1.476
A101: 2023-11-15 | B101: 2.75 | C101: 105.056 | D101: 105.062 | E101: -0.066 | F101: 1.48
A102: 2023-11-30 | B102: 2.125 | C102: 102.206 | D102: 102.212 | E102: -0.068 | F102: 1.48
A103: 2023-12-31 | B103: 2.25 | C103: 103.07 | D103: 103.074 | E103: -0.072 | F103: 1.481
A104: 2024-01-31 | B104: 2.5 | C104: 104.114 | D104: 104.12 | E104: -0.066 | F104: 1.479
A105: 2024-02-15 | B105: 2.75 | C105: 105.166 | D105: 105.172 | E105: -0.074 | F105: 1.47
A106: 2024-02-29 | B106: 2.125 | C106: 102.254 | D106: 102.26 | E106: -0.752 | F106: 1.481
A107: 2024-03-31 | B107: 2.125 | C107: 102.27 | D107: 102.274 | E107: -0.754 | F107: 1.481
A108: 2024-04-30 | B108: 2 | C108: 102.112 | D108: 102.116 | E108: -0.07 | F108: 1.476
A109: 2024-05-15 | B109: 2.5 | C109: 104.214 | D109: 104.22 | E109: -0.078 | F109: 1.472
A110: 2024-05-31 | B110: 2 | C110: 102.142 | D110: 102.146 | E110: -0.074 | F110: 1.465
A111: 2024-06-30 | B111: 1.75 | C111: 101.102 | D111: 101.106 | E111: -0.074 | F111: 1.464
A112: 2024-07-31 | B112: 1.75 | C112: 101.116 | D112: 101.122 | E112: -0.076 | F112: 1.459
A113: 2024-08-15 | B113: 2.375 | C113: 104.1 | D113: 104.104 | E113: -0.064 | F113: 1.472
A114: 2024-08-31 | B114: 1.875 | C114: 101.302 | D114: 101.306 | E114: -0.742 | F114: 1.469
A115: 2024-09-30 | B115: 2.125 | C115: 103.054 | D115: 103.06 | E115: -0.06 | F115: 1.475
A116: 2024-10-31 | B116: 2.25 | C116: 103.266 | D116: 103.272 | E116: -0.744 | F116: 1.477
A117: 2024-11-15 | B117: 2.25 | C117: 103.274 | D117: 103.28 | E117: -0.748 | F117: 1.478
A118: 2024-11-30 | B118: 2.125 | C118: 103.072 | D118: 103.076 | E118: -0.07 | F118: 1.484
A119: 2024-12-31 | B119: 2.25 | C119: 103.296 | D119: 103.302 | E119: -0.748 | F119: 1.482
A120: 2025-01-31 | B120: 2.5 | C120: 105.084 | D120: 105.09 | E120: -0.076 | F120: 1.487
A121: 2025-02-15 | B121: 2 | C121: 102.216 | D121: 102.222 | E121: -0.084 | F121: 1.487
A122: 2025-02-28 | B122: 2.75 | C122: 106.204 | D122: 106.21 | E122: -0.082 | F122: 1.492
A123: 2025-03-31 | B123: 2.625 | C123: 106 | D123: 106.004 | E123: -0.086 | F123: 1.503
A124: 2025-04-30 | B124: 2.875 | C124: 107.14 | D124: 107.144 | E124: -0.09 | F124: 1.504
A125: 2025-05-15 | B125: 2.125 | C125: 103.13 | D125: 103.134 | E125: -0.084 | F125: 1.5
A126: 2025-05-31 | B126: 2.875 | C126: 107.164 | D126: 107.17 | E126: -0.09 | F126: 1.509
A127: 2025-06-30 | B127: 2.75 | C127: 106.286 | D127: 106.292 | E127: -0.774 | F127: 1.513
A128: 2025-07-31 | B128: 2.875 | C128: 107.216 | D128: 107.222 | E128: -0.784 | F128: 1.517
A129: 2025-08-15 | B129: 2 | C129: 102.246 | D129: 102.252 | E129: -0.77 | F129: 1.511
A130: 2025-08-31 | B130: 2.75 | C130: 107.014 | D130: 107.02 | E130: -0.108 | F130: 1.52
A131: 2025-09-30 | B131: 3 | C131: 108.192 | D131: 108.196 | E131: -0.098 | F131: 1.518
A132: 2025-10-31 | B132: 3 | C132: 108.222 | D132: 108.226 | E132: -0.778 | F132: 1.521
A133: 2025-11-15 | B133: 2.25 | C133: 104.1 | D133: 104.104 | E133: -0.1 | F133: 1.52
A134: 2025-11-30 | B134: 2.875 | C134: 108.012 | D134: 108.016 | E134: -0.094 | F134: 1.525
A135: 2025-12-31 | B135: 2.625 | C135: 106.196 | D135: 106.202 | E135: -0.098 | F135: 1.527
A136: 2026-01-31 | B136: 2.625 | C136: 106.216 | D136: 106.222 | E136: -0.784 | F136: 1.53
A137: 2026-02-15 | B137: 1.625 | C137: 100.186 | D137: 100.192 | E137: -0.1 | F137: 1.527
A138: 2026-02-28 | B138: 2.5 | C138: 105.312 | D138: 105.316 | E138: -0.784 | F138: 1.532
A139: 2026-03-31 | B139: 2.25 | C139: 104.154 | D139: 104.16 | E139: -0.106 | F139: 1.532
A140: 2026-04-30 | B140: 2.375 | C140: 105.1 | D140: 105.104 | E140: -0.106 | F140: 1.534
A141: 2026-05-15 | B141: 1.625 | C141: 100.18 | D141: 100.184 | E141: -0.102 | F141: 1.534
A142: 2026-05-31 | B142: 2.125 | C142: 103.242 | D142: 103.246 | E142: -0.784 | F142: 1.537
A143: 2026-06-30 | B143: 1.875 | C143: 102.07 | D143: 102.074 | E143: -0.102 | F143: 1.529
A144: 2026-07-31 | B144: 1.875 | C144: 102.062 | D144: 102.066 | E144: -0.12 | F144: 1.538
A145: 2026-08-15 | B145: 1.5 | C145: 99.242 | D145: 99.246 | E145: -0.782 | F145: 1.534
A146: 2026-11-15 | B146: 2 | C146: 103.04 | D146: 103.044 | E146: -0.116 | F146: 1.54
A147: 2027-02-15 | B147: 2.25 | C147: 104.312 | D147: 104.316 | E147: -0.804 | F147: 1.541
A148: 2027-05-15 | B148: 2.375 | C148: 106.004 | D148: 106.01 | E148: -0.136 | F148: 1.545
A149: 2027-08-15 | B149: 2.25 | C149: 105.06 | D149: 105.064 | E149: -0.122 | F149: 1.555
A150: 2027-11-15 | B150: 2.25 | C150: 105.092 | D150: 105.096 | E150: -0.13 | F150: 1.561
A151: 2028-02-15 | B151: 2.75 | C151: 109.116 | D151: 109.122 | E151: -0.144 | F151: 1.565
A152: 2028-05-15 | B152: 2.875 | C152: 110.172 | D152: 110.176 | E152: -0.842 | F152: 1.577
A153: 2028-08-15 | B153: 2.875 | C153: 110.246 | D153: 110.252 | E153: -0.848 | F153: 1.582
A154: 2028-11-15 | B154: 3.125 | C154: 113.052 | D154: 113.056 | E154: -0.17 | F154: 1.585
A155: 2029-02-15 | B155: 2.625 | C155: 109.024 | D155: 109.03 | E155: -0.166 | F155: 1.589
A156: 2029-05-15 | B156: 2.375 | C156: 106.314 | D156: 107 | E156: -0.85 | F156: 1.596
A157: 2029-08-15 | B157: 1.625 | C157: 100.074 | D157: 100.084 | E157: -0.176 | F157: 1.596
A158: 2030-05-15 | B158: 6.25 | C158: 145.244 | D158: 145.254 | E158: -0.886 | F158: 1.592
A159: 2031-02-15 | B159: 5.375 | C159: 139.084 | D159: 139.094 | E159: -0.228 | F159: 1.613
A160: 2036-02-15 | B160: 4.5 | C160: 139.014 | D160: 139.024 | E160: -1.016 | F160: 1.759
A161: 2037-02-15 | B161: 4.75 | C161: 144.172 | D161: 144.182 | E161: -1.05 | F161: 1.774
A162: 2037-05-15 | B162: 5 | C162: 148.246 | D162: 148.256 | E162: -1.758 | F162: 1.779
A163: 2038-02-15 | B163: 4.375 | C163: 140.004 | D163: 140.014 | E163: -1.086 | F163: 1.815
A164: 2038-05-15 | B164: 4.5 | C164: 142.106 | D164: 142.116 | E164: -1.094 | F164: 1.821
A165: 2039-02-15 | B165: 3.5 | C165: 126.144 | D165: 126.154 | E165: -1.076 | F165: 1.872
A166: 2039-05-15 | B166: 4.25 | C166: 139.01 | D166: 139.02 | E166: -1.104 | F166: 1.873
A167: 2039-08-15 | B167: 4.5 | C167: 143.174 | D167: 143.184 | E167: -1.138 | F167: 1.875
A168: 2039-11-15 | B168: 4.375 | C168: 141.174 | D168: 141.184 | E168: -1.142 | F168: 1.892
A169: 2040-02-15 | B169: 4.625 | C169: 146.052 | D169: 146.062 | E169: -1.182 | F169: 1.894
A170: 2040-05-15 | B170: 4.375 | C170: 142.002 | D170: 142.012 | E170: -1.174 | F170: 1.91
A171: 2040-08-15 | B171: 3.875 | C171: 133.152 | D171: 133.162 | E171: -1.16 | F171: 1.926
A172: 2040-11-15 | B172: 4.25 | C172: 140.042 | D172: 140.052 | E172: -1.182 | F172: 1.935
A173: 2041-02-15 | B173: 4.75 | C173: 149.102 | D173: 149.112 | E173: -1.9 | F173: 1.932
A174: 2041-05-15 | B174: 4.375 | C174: 142.24 | D174: 142.25 | E174: -1.88 | F174: 1.951
A175: 2041-08-15 | B175: 3.75 | C175: 131.192 | D175: 131.202 | E175: -1.87 | F175: 1.97
A176: 2041-11-15 | B176: 3.125 | C176: 120.116 | D176: 120.126 | E176: -1.166 | F176: 1.986
A177: 2042-02-15 | B177: 3.125 | C177: 120.132 | D177: 120.142 | E177: -1.17 | F177: 1.993
A178: 2042-05-15 | B178: 3 | C178: 118.022 | D178: 118.032 | E178: -1.18 | F178: 2.005
A179: 2042-08-15 | B179: 2.75 | C179: 113.12 | D179: 113.13 | E179: -1.176 | F179: 2.018
A180: 2042-11-15 | B180: 2.75 | C180: 113.104 | D180: 113.114 | E180: -1.176 | F180: 2.026
A181: 2043-02-15 | B181: 3.125 | C181: 120.136 | D181: 120.146 | E181: -1.88 | F181: 2.026
A182: 2043-05-15 | B182: 2.875 | C182: 115.24 | D182: 115.25 | E182: -1.89 | F182: 2.033
A183: 2043-08-15 | B183: 3.625 | C183: 130.072 | D183: 130.082 | E183: -1.934 | F183: 2.026
A184: 2043-11-15 | B184: 3.75 | C184: 132.254 | D184: 132.264 | E184: -1.95 | F184: 2.029
A185: 2044-02-15 | B185: 3.625 | C185: 130.154 | D185: 130.164 | E185: -1.952 | F185: 2.036
A186: 2044-05-15 | B186: 3.375 | C186: 125.214 | D186: 125.224 | E186: -1.958 | F186: 2.046
A187: 2044-08-15 | B187: 3.125 | C187: 120.276 | D187: 120.286 | E187: -1.944 | F187: 2.052
A188: 2044-11-15 | B188: 3 | C188: 118.17 | D188: 118.18 | E188: -1.932 | F188: 2.054
A189: 2045-02-15 | B189: 2.5 | C189: 108.192 | D189: 108.202 | E189: -1.904 | F189: 2.063
A190: 2045-05-15 | B190: 3 | C190: 118.256 | D190: 118.266 | E190: -1.944 | F190: 2.054
A191: 2045-08-15 | B191: 2.875 | C191: 116.11 | D191: 116.12 | E191: -1.94 | F191: 2.058
A192: 2045-11-15 | B192: 3 | C192: 119.01 | D192: 119.02 | E192: -1.276 | F192: 2.056
A193: 2046-02-15 | B193: 2.5 | C193: 108.21 | D193: 108.22 | E193: -1.932 | F193: 2.072
A194: 2046-05-15 | B194: 2.5 | C194: 108.21 | D194: 108.22 | E194: -1.932 | F194: 2.075
A195: 2046-08-15 | B195: 2.25 | C195: 103.154 | D195: 103.164 | E195: -1.912 | F195: 2.079
A196: 2046-11-15 | B196: 2.875 | C196: 116.232 | D196: 116.242 | E196: -1.97 | F196: 2.067
A197: 2047-02-15 | B197: 3 | C197: 119.184 | D197: 119.194 | E197: -1.978 | F197: 2.062
A198: 2047-05-15 | B198: 3 | C198: 119.17 | D198: 119.18 | E198: -1.982 | F198: 2.069
A199: 2047-08-15 | B199: 2.75 | C199: 114.06 | D199: 114.07 | E199: -1.964 | F199: 2.077
A200: 2047-11-15 | B200: 2.75 | C200: 114.086 | D200: 114.096 | E200: -1.968 | F200: 2.078
... 7 more rows
